bitfinex-derivatives/quotes_ETHF0:USTF0_20260113
["timestamp","ask_amount","ask_price","bid_price","bid_amount"]
[1768342700013,1.516,3313.5,3310.7,3.34257126]
[1768342700315,0.00344867,3313.6,3310.7,3.34257126]
[1768342700522,1.52044867,3313.6,3310.7,3.34257126]
[1768342700923,1.52044867,3313.6,3310.8,1.178]
[1768342701123,3.52145795,3313.4,3310.6,0.00291404]
[1768342701324,3.52145795,3313.3,3310.6,0.00291404]
[1768342701525,3.52145795,3312.8,3310.6,0.00291404]
[1768342701721,3.52145795,3312.8,3309.3,1.178]
[1768342701926,4.537,3312.7,3309.4,3.34257126]
[1768342702325,3.52145795,3312.8,3309.5,3.34257126]
[1768342702517,3.52145795,3312.8,3309.6,3.34257126]
[1768342702718,1.517,3312.7,3309.6,3.34257126]
[1768342703016,3.52490662,3313.6,3309.7,3.34257126]
[1768342703221,3.52490662,3313.6,3309.9,3.34257126]
[1768342703525,0.00344867,3313.6,3310.4,3.34257126]
[1768342703721,0.00344867,3313.6,3310.6,3.34257126]
[1768342704218,0.00344867,3313.6,3310.7,3.34257126]
[1768342704927,0.00344867,3313.6,3311.2,3.34257126]
[1768342705727,0.00344867,3313.6,3311.3,3.34257126]
[1768342706025,0.00344867,3313.6,3311.5,3.34257126]
[1768342707132,0.00344867,3313.6,3310.9,1.178]
[1768342707429,3.52490662,3313.6,3310.9,1.178]
[1768342707828,3.52490662,3313.6,3311.0,3.34257126]
[1768342708431,0.00344867,3313.6,3311.4,3.34257126]
[1768342708624,0.00344867,3313.6,3311.8,3.34257126]
[1768342708824,0.00344867,3313.6,3312.0,3.34257126]
[1768342709128,0.00344867,3313.6,3312.0,3.34536122]
[1768342709317,0.00344867,3313.6,3312.0,4.87552257]
[1768342709522,3.021,3315.1,3312.1,4.87273261]
[1768342709724,4.538,3315.1,3312.2,3.34257126]
[1768342710219,4.538,3315.1,3312.2,4.87273261]
[1768342710526,3.52145795,3315.0,3312.2,4.87273261]
[1768342710832,3.52145795,3315.0,3312.2,3.34257126]
[1768342711033,3.52145795,3315.0,3312.3,3.34257126]
[1768342711425,5.04045795,3315.0,3312.3,3.34257126]
[1768342711732,5.04045795,3315.0,3312.4,4.87273261]
[1768342712128,3.52145795,3314.9,3312.5,1.53016135]
[1768342712328,0.00385167,3315.1,3312.8,3.34257126]
[1768342712526,0.00385167,3315.1,3312.8,6.05073261]
[1768342712726,0.00385167,3315.1,3312.8,4.52057126]
[1768342712930,0.00385167,3315.1,3312.8,2.70816135]
[1768342713232,0.00385167,3315.1,3312.9,3.34257126]
[1768342713829,0.00385167,3315.1,3312.5,4.52057126]
[1768342714133,0.00385167,3315.1,3312.6,3.34257126]
[1768342715127,3.30798009,3315.1,3312.6,4.87273261]
[1768342715333,3.30798009,3315.1,3312.0,0.00278996]
[1768342715334,3.30798009,3315.1,3312.4,1.53016135]
[1768342715627,0.00385167,3315.1,3312.4,1.53016135]
[1768342715832,0.00385167,3315.1,3312.6,3.42975662]
[1768342716036,0.00385167,3315.1,3312.7,3.42975662]
[1768342716434,0.00385167,3315.1,3312.8,3.42975662]
[1768342716931,3.30798009,3315.1,3312.6,1.53016135]
[1768342717137,3.30798009,3315.1,3312.3,1.53016135]
[1768342717639,3.30798009,3315.1,3312.3,4.95991797]
[1768342717825,3.30798009,3315.1,3312.3,3.42975662]
[1768342718739,1.517,3315.0,3312.3,3.42975662]
[1768342718941,3.30798009,3315.1,3312.4,3.42975662]
[1768342719238,1.517,3315.0,3312.4,3.42975662]
[1768342720140,3.30412842,3314.9,3312.4,3.42975662]
[1768342720641,0.00385167,3315.1,3312.8,3.42975662]
[1768342720838,0.00385167,3315.1,3312.8,4.95991797]
[1768342721036,0.00385167,3315.1,3313.0,1.53016135]
[1768342721343,0.00385167,3315.1,3313.1,3.42975662]
[1768342723042,0.00385167,3315.1,3312.8,1.53016135]
[1768342723238,3.30798009,3315.1,3312.8,1.53016135]
[1768342723439,3.30798009,3315.1,3312.5,1.53016135]
[1768342723742,3.30798009,3315.1,3312.3,1.53016135]
[1768342724036,6.00385167,3315.1,3312.1,1.52174711]
[1768342724237,3.30412842,3314.3,3312.0,0.00278996]
[1768342724434,3.30412842,3314.1,3312.0,0.00278996]
[1768342724636,3.30412842,3314.0,3312.0,0.00278996]
[1768342725543,6.0,3313.9,3312.0,0.00278996]
[1768342725945,3.30412842,3313.8,3310.2,5.47541051]
[1768342726147,3.30412842,3313.8,3310.3,3.42975662]
[1768342726345,3.30412842,3313.7,3310.3,3.42975662]
[1768342726650,3.30412842,3313.2,3309.8,4.40166519]
[1768342726943,3.30412842,3313.0,3309.8,0.00174404]
[1768342727446,3.30412842,3313.0,3310.0,3.42975662]
[1768342727747,1.521,3313.1,3310.0,3.42975662]
[1768342727937,4.82512842,3313.1,3310.0,3.42975662]
[1768342728245,3.30412842,3313.0,3310.0,3.42975662]
[1768342728446,1.521,3313.1,3310.1,3.42975662]
[1768342728645,1.521,3313.1,3310.2,3.42975662]
[1768342728847,1.521,3313.1,3310.4,3.42975662]
[1768342729144,1.521,3313.1,3310.6,3.42975662]
[1768342729445,3.30412842,3313.8,3310.6,3.42975662]
[1768342729647,3.02,3314.6,3311.3,3.42975662]
[1768342730040,3.02,3314.6,3311.5,3.42975662]
[1768342730441,6.32412842,3314.6,3313.0,0.24876093]
[1768342730642,6.32412842,3314.6,3313.0,0.25216669]
[1768342731350,6.32412842,3314.6,3313.8,0.24876093]
[1768342731737,6.0,3314.5,3313.8,0.24876093]
[1768342732050,6.0,3314.5,3313.0,0.00340576]
[1768342732246,6.32412842,3314.6,3313.0,0.00340576]
[1768342732753,1.523,3314.7,3313.0,0.00340576]
[1768342733450,0.00385167,3315.1,3313.0,3.43316238]
[1768342734157,0.00385167,3315.1,3313.0,0.00340576]
[1768342735754,1.529,3315.2,3313.0,0.00340576]
[1768342735755,1.52885167,3315.2,3313.0,0.00340576]
[1768342736350,3.30412842,3315.1,3313.0,0.00340576]
[1768342736749,3.3068592,3315.1,3313.0,0.00340576]
[1768342738554,3.30412842,3315.0,3313.0,0.00340576]
[1768342740257,3.3068592,3315.1,3313.0,0.00340576]
[1768342740645,3.30412842,3315.0,3313.0,0.00340576]
[1768342740858,0.00273078,3315.1,3313.0,3.43316238]
[1768342741256,3.3068592,3315.1,3313.0,0.00340576]
[1768342741460,1.528,3315.0,3313.0,0.00340576]
[1768342741663,4.83212842,3315.0,3313.0,0.00340576]
[1768342741961,3.30412842,3314.9,3311.6,3.42975662]
[1768342742561,1.528,3315.0,3311.6,3.42975662]
[1768342742859,0.00273078,3315.1,3312.5,2.04565389]
[1768342743045,0.00273078,3315.1,3312.6,9.67441051]
[1768342743245,0.00273078,3315.1,3312.9,2.04565389]
[1768342743451,0.00273078,3315.1,3313.0,3.42975662]
[1768342744052,3.3068592,3315.1,3312.2,3.42975662]
[1768342744252,3.3068592,3315.1,3312.3,4.60875662]
[1768342744450,3.3068592,3315.1,3312.4,3.42975662]
[1768342744757,3.3068592,3315.1,3311.7,3.42975662]
[1768342745253,3.3108823,3315.0,3311.7,3.42975662]
[1768342745952,3.3108823,3315.0,3311.8,3.44513897]
[1768342746655,3.3108823,3315.0,3311.9,3.44513897]
[1768342747756,0.00273078,3315.1,3312.6,3.44513897]
[1768342747959,0.00273078,3315.1,3313.3,4.96574938]
[1768342748261,3.02,3316.9,3313.8,3.44513897]
[1768342748457,3.02,3316.9,3314.0,3.44513897]
[1768342748663,4.8388823,3318.4,3314.8,3.44513897]
[1768342749171,44.1108823,3318.3,3315.0,3.44513897]
[1768342749567,44.1108823,3318.3,3315.2,3.44513897]
[1768342749866,3.3108823,3318.2,3315.2,3.44513897]
[1768342750063,3.61611488,3318.2,3315.2,3.44513897]
[1768342750268,9.61611488,3318.2,3314.8,0.00283939]
[1768342750564,3.3108823,3318.1,3314.8,3.44797836]
[1768342751759,1.53080952,3318.4,3314.8,3.44797836]
[1768342752065,1.53080952,3318.4,3314.9,3.44513897]
[1768342752264,1.53080952,3318.4,3315.0,3.44513897]
[1768342752558,0.00280952,3318.4,3315.2,3.44513897]
[1768342752960,2.91775942,3320.8,3315.4,3.44513897]
[1768342753161,1.532,3321.8,3316.6,3.44513897]
[1768342753360,1.532,3321.8,3316.9,3.44513897]
[1768342753560,1.532,3321.8,3317.3,4.96574938]
[1768342753762,3.019,3322.1,3317.6,3.44513897]
[1768342754065,21.139,3324.0,3318.5,1.52061041]
[1768342754066,0.21109505,3321.5,3318.5,1.52061041]
[1768342754270,0.21109505,3321.5,3318.6,6.46413897]
[1768342754469,0.21109505,3321.5,3318.7,3.44513897]
[1768342754966,0.21109505,3321.5,3318.9,3.44513897]
[1768342755563,0.21109505,3321.5,3319.1,3.44513897]
[1768342755966,0.21109505,3321.5,3319.0,1.178]
[1768342755967,3.3108823,3324.7,3319.3,3.44513897]
[1768342756164,6.3288823,3324.7,3319.3,3.44513897]
[1768342756367,3.3108823,3324.7,3319.5,3.44513897]
[1768342756571,3.3108823,3324.5,3319.7,3.44513897]
[1768342756868,3.3108823,3324.3,3319.8,4.196]
[1768342757060,3.3108823,3324.3,3319.9,3.44513897]
[1768342757264,3.3108823,3324.3,3320.1,3.44513897]
[1768342757464,3.3108823,3324.1,3320.1,3.44774378]
[1768342757871,3.54727925,3323.9,3320.1,3.44774378]
[1768342758076,0.15042,3324.2,3320.1,3.44774378]
[1768342758077,3.54727925,3323.7,3320.1,3.44774378]
[1768342759271,4.55,3323.6,3320.1,3.44774378]
[1768342759773,1.533,3323.6,3320.1,3.44774378]
[1768342759975,1.533,3323.6,3320.3,3.58793816]
[1768342760175,1.534,3323.6,3320.3,3.58793816]
[1768342760769,1.535,3323.7,3320.3,3.58793816]
[1768342761363,40.8,3324.4,3320.4,3.58793816]
[1768342761571,0.00317968,3324.5,3320.4,3.58793816]
[1768342761771,0.00317968,3324.5,3320.1,0.00260481]
[1768342761772,0.30813894,3325.5,3320.6,3.58793816]
[1768342761973,1.128,3325.8,3320.6,3.58793816]
[1768342762171,0.20678819,3326.3,3320.8,3.58793816]
[1768342762672,0.2100641,3326.3,3321.3,3.58793816]
[1768342763077,3.015,3328.2,3322.6,3.58793816]
[1768342763377,0.29824215,3328.4,3322.8,3.58793816]
[1768342763579,3.015,3329.1,3323.0,3.58793816]
[1768342763872,0.30653341,3329.2,3323.9,3.58793816]
[1768342764079,0.30653341,3329.2,3324.8,3.58793816]
[1768342764080,0.00341323,3329.2,3324.8,3.58793816]
[1768342764384,1.163,3331.6,3325.2,3.58793816]
[1768342764576,1.04,3333.0,3325.4,3.58793816]
[1768342764879,3.014,3332.3,3325.9,3.58793816]
[1768342765073,0.30941864,3331.4,3326.1,3.58793816]
[1768342765276,3.25214822,3331.1,3326.3,3.58793816]
[1768342765469,3.25589789,3331.1,3326.5,3.58793816]
[1768342765670,6.18521277,3331.0,3326.7,3.58793816]
[1768342765875,0.20846452,3331.1,3326.7,3.58793816]
[1768342766181,0.20846452,3331.1,3326.6,4.192]
[1768342766182,0.20846452,3331.1,3326.9,3.58793816]
[1768342766681,3.2712489,3331.1,3327.1,3.58793816]
[1768342767083,3.013,3331.0,3327.1,3.58793816]
[1768342767381,3.013,3330.9,3327.1,3.58793816]
[1768342768081,3.012,3330.9,3327.1,3.58793816]
[1768342768579,0.20846452,3331.1,3327.2,3.58793816]
[1768342768973,0.20846452,3331.1,3327.4,3.58793816]
[1768342769479,0.20846452,3331.1,3327.6,3.58793816]
[1768342769780,0.20846452,3331.1,3327.8,3.58793816]
[1768342769975,0.20846452,3331.1,3328.0,3.58793816]
[1768342770479,0.20846452,3331.1,3328.2,3.58793816]
[1768342770885,0.20846452,3331.1,3328.2,9.58793816]
[1768342771178,0.20846452,3331.1,3328.3,3.58793816]
[1768342771878,0.20846452,3331.1,3328.3,9.58793816]
[1768342772179,0.20846452,3331.1,3328.4,3.58793816]
[1768342772370,0.20846452,3331.1,3328.6,3.58793816]
[1768342773077,0.20846452,3331.1,3328.8,3.58793816]
[1768342773278,0.20846452,3331.1,3328.8,3.59075206]
[1768342773483,0.20846452,3331.1,3328.9,3.58793816]
[1768342773782,0.20846452,3331.1,3328.8,6.0028139]
[1768342773783,0.20846452,3331.1,3329.1,3.58793816]
[1768342774081,0.14997,3334.3,3329.1,3.58793816]
[1768342774082,3.29076381,3334.3,3329.1,3.58793816]
[1768342774281,3.29076381,3334.9,3329.3,3.58793816]
[1768342774482,3.29076381,3334.9,3329.5,3.58793816]
[1768342774673,3.31182738,3334.6,3329.7,3.58793816]
[1768342774877,3.31182738,3333.6,3329.7,3.58793816]
[1768342775073,3.29706957,3333.4,3329.7,3.58793816]
[1768342775273,3.009,3333.5,3329.0,3.35495541]
[1768342775274,3.29706957,3333.0,3329.0,3.35495541]
[1768342775677,3.29706957,3333.0,3329.2,3.35495541]
[1768342776077,3.29706957,3332.9,3329.2,3.35495541]
[1768342776483,3.2869031,3332.7,3329.2,3.35495541]
[1768342776678,3.2869031,3334.5,3329.2,3.35495541]
[1768342776873,0.00387877,3334.6,3329.7,3.35495541]
[1768342777076,0.00387877,3334.6,3329.6,2.91775942]
[1768342777077,0.00387877,3334.6,3329.9,3.35495541]
[1768342777277,0.2026156,3336.0,3331.2,3.35495541]
[1768342777478,0.2026156,3336.0,3331.4,3.35495541]
[1768342777678,0.2026156,3336.0,3331.6,3.35495541]
[1768342777877,0.2026156,3336.0,3327.6,2.3560113]
[1768342777878,3.2869031,3338.6,3332.6,3.35495541]
[1768342778074,2.33757167,3339.2,3332.8,3.35495541]
[1768342778275,2.34033755,3339.2,3332.8,3.35728319]
[1768342778485,40.8,3339.1,3333.0,3.35495541]
[1768342778682,43.9773795,3339.1,3333.2,3.35495541]
[1768342778877,3.1773795,3339.0,3333.4,3.35495541]
[1768342779079,3.1773795,3338.8,3333.6,3.35495541]
[1768342779576,3.1773795,3338.8,3332.8,0.00232778]
[1768342779577,0.30978228,3339.0,3333.8,3.35495541]
[1768342779778,3.18014538,3339.2,3334.0,3.35495541]
[1768342779979,3.18014538,3339.2,3334.2,3.35495541]
[1768342779980,3.48051648,3339.2,3334.2,3.35495541]
[1768342780181,3.1773795,3339.0,3334.2,3.35495541]
[1768342780582,3.20605165,3338.8,3334.2,3.35495541]
[1768342780986,3.20605165,3338.6,3334.2,3.35495541]
[1768342781588,3.005,3338.8,3334.2,3.35495541]
[1768342781778,3.20605165,3338.7,3334.4,3.35495541]
[1768342782287,3.20605165,3338.5,3334.4,3.35495541]
[1768342782481,3.19236429,3338.4,3333.6,3.35495541]
[1768342782687,3.19236429,3338.3,3333.6,3.35495541]
[1768342782882,3.19003651,3337.0,3331.2,3.35495541]
[1768342783087,3.19003651,3336.8,3331.2,3.35495541]
[1768342783287,3.19003651,3336.5,3331.2,3.35495541]
[1768342783585,3.19003651,3336.3,3331.2,3.35495541]
[1768342783789,14.8235592,3336.4,3330.4,3.35495541]
[1768342783989,7.13504403,3336.2,3330.4,3.35832674]
[1768342784286,3.009,3336.2,3330.4,3.35832674]
[1768342784491,41.89652795,3336.1,3330.4,3.35832674]
[1768342784787,28.572,3336.1,3330.4,3.35832674]
[1768342785094,3.009,3335.9,3330.7,0.15013]
[1768342785388,13.32452795,3336.0,3330.4,3.35832674]
[1768342785389,3.009,3335.7,3330.4,3.35832674]
[1768342785890,3.009,3335.5,3330.4,3.35832674]
[1768342786188,3.009,3334.6,3330.4,0.00337133]
[1768342786382,3.009,3334.4,3330.4,0.00337133]
[1768342786784,40.8,3332.9,3330.4,0.00337133]
[1768342787083,3.004,3332.8,3330.4,0.00337133]
[1768342787285,3.18580245,3332.6,3328.6,0.15022]
[1768342787485,3.18580245,3332.4,3328.6,0.15022]
[1768342787985,3.18580245,3332.2,3326.8,3.004]
[1768342788184,3.18580245,3332.0,3327.7,0.20594123]
[1768342788690,0.30731225,3332.6,3328.7,0.15021]
[1768342788691,3.12321017,3331.8,3328.7,0.15021]
[1768342789290,3.12321017,3331.6,3328.7,0.15021]
[1768342789491,3.12321017,3331.6,3327.9,3.35495541]
[1768342790089,3.12321017,3331.4,3327.8,0.15026]
[1768342790478,3.13956125,3331.2,3327.8,0.15026]
[1768342790682,3.13956125,3331.0,3327.8,0.15026]
[1768342790883,3.13956125,3331.0,3327.8,3.35495541]
[1768342791083,3.13956125,3331.0,3327.8,3.3573885]
[1768342791084,3.13956125,3330.8,3327.8,3.3573885]
[1768342791293,3.13956125,3330.8,3327.8,0.00243309]
[1768342791785,3.13956125,3330.6,3326.4,0.15032]
[1768342792085,3.38932147,3330.4,3326.4,0.15032]
[1768342792289,3.19367862,3330.5,3324.2,21.33316496]
[1768342792290,3.38932147,3329.8,3325.3,0.15037]
[1768342792490,3.38932147,3329.6,3325.3,0.15037]
[1768342792691,3.38932147,3329.4,3325.3,0.15037]
[1768342792888,3.38932147,3329.4,3325.3,0.00252083]
[1768342793082,3.38932147,3329.2,3325.3,0.00252083]
[1768342793485,3.38932147,3329.0,3325.3,0.00252083]
[1768342793886,3.38932147,3329.0,3325.5,0.15036]
[1768342794485,3.38932147,3329.0,3325.4,3.35495541]
[1768342795185,3.38932147,3329.0,3325.3,3.35747624]
[1768342795186,3.38932147,3328.9,3325.3,3.35747624]
[1768342795493,3.38932147,3328.7,3325.3,0.00252083]
[1768342795690,3.38932147,3328.6,3325.3,3.35747624]
[1768342795890,3.38932147,3328.4,3325.3,3.35747624]
[1768342796087,7.93032147,3328.3,3325.3,3.35747624]
[1768342796293,9.20315606,3329.5,3325.3,3.35747624]
[1768342796294,3.38932147,3328.1,3325.3,0.00252083]
[1768342796895,3.38932147,3327.9,3325.3,0.00252083]
[1768342797393,3.38932147,3327.7,3325.3,0.00252083]
[1768342797795,44.18932147,3327.6,3325.3,0.00252083]
[1768342797995,3.38932147,3327.5,3325.3,0.00252083]
[1768342798401,3.68135106,3327.5,3325.3,0.00252083]
[1768342798803,3.38932147,3327.4,3325.3,0.00252083]
[1768342799202,4.545,3327.3,3325.3,0.00252083]
[1768342799402,3.007,3327.2,3325.3,0.00252083]
[1768342799603,1.539,3327.1,3325.3,0.00252083]
[1768342800296,3.01084865,3327.2,3325.3,0.00252083]
[1768342800297,1.539,3327.0,3325.3,0.00252083]
[1768342801105,1.539,3327.0,3325.3,3.35747624]
[1768342801303,1.539,3327.0,3325.3,0.00252083]
[1768342801503,0.00384865,3327.2,3325.3,0.00252083]
[1768342801799,1.539,3327.1,3325.3,3.35747624]
[1768342802191,0.00384865,3327.2,3325.3,3.35747624]
[1768342802396,0.00384865,3327.2,3325.4,3.35495541]
[1768342803699,0.29575707,3328.7,3325.3,6.00252083]
[1768342803700,0.2928187,3329.0,3326.0,3.35495541]
[1768342803896,3.38932147,3330.2,3326.2,3.35495541]
[1768342804098,6.39732147,3329.9,3326.2,6.36295541]
[1768342804297,6.39732147,3329.9,3326.3,3.35495541]
[1768342804698,3.38932147,3329.8,3326.3,3.35495541]
[1768342804897,0.0022697,3329.9,3326.8,3.46256671]
[1768342805298,0.0022697,3329.9,3327.0,3.46256671]
[1768342805700,3.28932983,3329.8,3326.4,3.46256671]
[1768342806596,0.0022697,3329.9,3326.5,3.46256671]
[1768342806802,0.0022697,3329.9,3327.2,3.46256671]
[1768342806998,0.0022697,3329.9,3327.4,3.46256671]
[1768342807707,0.2920779,3331.1,3327.6,3.46256671]
[1768342807907,1.537,3331.2,3327.6,3.46256671]
[1768342808104,3.28932983,3332.0,3327.6,3.46256671]
[1768342808303,6.58716978,3333.0,3328.9,3.46256671]
[1768342808502,3.28932983,3333.0,3328.9,3.46256671]
[1768342808706,4.545,3332.9,3329.0,3.46256671]
[1768342808908,1.538,3332.8,3329.0,3.46256671]
[1768342809109,1.538,3332.8,3330.2,3.46256671]
[1768342809910,3.28932983,3332.7,3330.1,0.002]
[1768342810208,3.28932983,3332.1,3328.9,0.00374006]
[1768342810811,3.28932983,3331.9,3328.9,0.00374006]
[1768342811412,9.28932983,3331.9,3328.9,0.00374006]
[1768342811618,3.28932983,3331.8,3328.9,0.00374006]
[1768342811817,3.28932983,3331.3,3328.9,0.00374006]
[1768342812010,3.28932983,3330.5,3326.7,3.46256671]
[1768342812211,2.41159658,3330.6,3326.7,3.46256671]
[1768342812212,3.28932983,3330.3,3326.7,3.46256671]
[1768342813015,4.543,3330.2,3326.7,3.46477623]
[1768342813511,3.29218007,3330.3,3326.8,3.46256671]
[1768342813815,1.537,3330.1,3326.8,3.46256671]
[1768342814712,0.00285024,3330.3,3326.9,3.46256671]
[1768342814912,0.00285024,3330.3,3326.7,2.4138061]
[1768342814913,0.00285024,3330.3,3327.1,3.46256671]
[1768342815311,0.00285024,3330.3,3327.2,3.46256671]
[1768342815515,1.538,3330.2,3327.2,3.46256671]
[1768342816016,3.006,3330.2,3327.2,3.46256671]
[1768342816209,1.538,3330.1,3327.2,3.46256671]
[1768342816615,0.00285024,3330.3,3327.2,3.46256671]
[1768342816815,1.538,3330.2,3327.2,3.46256671]
[1768342817118,0.00285024,3330.3,3327.3,3.46256671]
[1768342817316,3.29218007,3330.3,3327.3,3.46256671]
[1768342817516,3.29218007,3330.3,3326.7,0.00220952]
[1768342817718,3.29218007,3330.3,3326.7,3.36807033]
[1768342817913,3.336115,3329.8,3326.7,0.00220952]
[1768342818213,3.336115,3329.6,3326.7,0.00220952]
[1768342818412,3.336115,3329.4,3326.7,0.00220952]
[1768342818915,3.336115,3329.2,3326.7,0.00220952]
[1768342819118,3.006,3329.1,3326.7,0.00220952]
[1768342819618,6.342115,3329.1,3326.7,0.00220952]
[1768342819920,3.336115,3329.0,3326.7,0.00220952]
[1768342820615,3.336115,3328.8,3326.7,0.00220952]
[1768342821521,3.336115,3328.6,3326.7,0.00220952]
[1768342821717,3.336115,3328.6,3325.6,3.36586081]
[1768342822217,40.8,3328.5,3325.6,3.36586081]
[1768342822418,4.544,3328.4,3325.6,3.36586081]
[1768342822618,7.880115,3328.4,3325.6,3.36586081]
[1768342822816,3.336115,3328.4,3325.6,3.36846113]
[1768342823020,4.545,3328.3,3325.6,3.36846113]
[1768342824231,3.336115,3328.2,3325.6,0.00260032]
[1768342825214,4.545,3328.3,3325.7,3.36586081]
[1768342825723,1.537,3328.3,3325.7,3.36586081]
[1768342826220,3.336115,3328.2,3325.7,3.36586081]
[1768342826526,3.336115,3328.2,3325.6,0.00260032]
[1768342826718,3.336115,3328.2,3323.7,2.41159658]
[1768342826719,3.336115,3328.0,3324.3,3.36586081]
[1768342827328,3.007,3327.9,3324.3,3.36586081]
[1768342827522,3.336115,3328.0,3324.4,3.36586081]
[1768342827723,1.538,3327.8,3324.4,3.36934045]
[1768342828218,0.00333433,3328.0,3324.4,3.36934045]
[1768342828412,1.539,3327.9,3324.6,3.36586081]
[1768342829117,3.336115,3327.8,3324.6,3.36586081]
[1768342829513,3.63133398,3327.8,3324.6,3.36586081]
[1768342831624,3.336115,3327.6,3324.6,3.36586081]
[1768342832025,3.336115,3326.5,3323.3,3.36586081]
[1768342832325,1.539,3326.4,3323.3,3.36586081]
[1768342832525,3.336115,3326.3,3323.3,3.36586081]
[1768342832927,3.336115,3326.3,3323.3,3.368607]
[1768342833126,3.008,3326.9,3323.4,3.36586081]
[1768342833326,1.539,3326.8,3323.4,3.36586081]
[1768342833722,3.336115,3326.7,3323.4,3.36586081]
[1768342834524,3.336115,3326.2,3323.3,0.00274619]
[1768342835523,2.41159658,3326.3,3323.3,0.00274619]
[1768342835524,3.34546539,3326.0,3323.3,0.00274619]
[1768342835728,6.0,3326.1,3323.3,0.00274619]
[1768342835729,3.34546539,3325.8,3323.3,0.00274619]
[1768342836031,1.543,3325.9,3323.3,0.00274619]
[1768342836032,3.34546539,3325.4,3323.3,0.00274619]
[1768342836230,3.34546539,3325.2,3323.3,0.00274619]
[1768342836526,0.00272662,3325.4,3323.3,0.00274619]
[1768342836834,1.543,3325.3,3323.3,0.00274619]
[1768342837825,1.543,3325.2,3323.3,0.00274619]
[1768342838233,3.34546539,3325.1,3323.3,0.00274619]
[1768342838429,3.34546539,3324.9,3322.8,0.20471485]
[1768342838927,3.34546539,3325.6,3322.8,3.71655103]
[1768342839130,4.553,3325.5,3322.8,3.71655103]
[1768342839330,4.55598045,3325.5,3322.8,3.72015203]
[1768342839633,7.90144584,3325.5,3322.8,3.72015203]
[1768342840029,3.34844584,3325.5,3322.8,3.72015203]
[1768342840227,7.89846539,3325.4,3322.8,3.72015203]
[1768342840432,3.34546539,3325.3,3322.8,0.20831585]
[1768342840631,3.34546539,3325.3,3322.8,3.72015203]
[1768342841630,0.00298045,3325.5,3322.8,3.72015203]
[1768342841935,0.00298045,3325.5,3322.9,3.51183618]
[1768342842136,0.00298045,3325.5,3323.1,3.51183618]
[1768342842340,0.00298045,3325.5,3323.3,3.51183618]
[1768342842935,0.00298045,3325.5,3323.5,3.51183618]
[1768342844329,1.544,3326.6,3323.7,3.51183618]
[1768342845434,4.89229192,3326.6,3323.9,3.51183618]
[1768342846953,1.54682653,3326.6,3323.9,3.51183618]
[1768342848256,3.34546539,3326.5,3323.9,3.51183618]
[1768342848563,3.34546539,3327.9,3324.1,3.51183618]
[1768342848747,3.01,3328.3,3324.1,3.51183618]
[1768342848748,3.34546539,3327.7,3324.3,3.51183618]
[1768342849257,1.543,3327.8,3324.7,3.51183618]
[1768342849446,1.543,3327.8,3324.8,1.49893697]
[1768342849646,1.54589316,3327.8,3324.9,3.51183618]
[1768342850552,4.89135855,3327.8,3324.9,3.51183618]
[1768342850859,3.34546539,3327.7,3325.0,1.18]
[1768342851151,3.34546539,3327.7,3324.2,5.01077315]
[1768342851356,3.34546539,3327.7,3324.2,3.51183618]
[1768342851555,3.34546539,3326.9,3323.6,1.49893697]
[1768342851755,3.34546539,3326.7,3323.5,2.67893697]
[1768342851955,3.34546539,3326.7,3322.9,5.86784748]
[1768342851956,3.34546539,3326.5,3323.3,1.49893697]
[1768342852259,3.34546539,3326.5,3323.4,1.18]
[1768342852558,3.34546539,3326.5,3323.5,3.51183618]
[1768342852857,3.34546539,3326.5,3323.8,3.51183618]
[1768342853055,3.34546539,3327.2,3324.2,3.51183618]
[1768342853264,3.34546539,3327.2,3324.1,1.49893697]
[1768342853550,4.88746539,3327.1,3324.1,3.51183618]
[1768342853760,3.34546539,3327.0,3323.5,2.6814622]
[1768342853961,3.34546539,3327.0,3323.5,4.69183618]
[1768342854154,3.34546539,3327.0,3323.6,3.51183618]
[1768342854352,3.34546539,3327.0,3323.7,3.51183618]
[1768342856958,26.39822338,3329.0,3323.7,3.51183618]
[1768342856959,3.34546539,3327.5,3323.7,3.51183618]
[1768342857154,3.34546539,3327.5,3320.2,16.2958542]
[1768342857155,3.34835855,3327.8,3324.5,3.51183618]
[1768342857360,3.34546539,3327.5,3324.5,3.51183618]
[1768342858260,3.34546539,3327.5,3324.1,1.18]
[1768342858452,3.34546539,3327.5,3323.8,3.51183618]
[1768342858653,3.34546539,3327.5,3324.0,3.51183618]
[1768342858962,3.34546539,3327.1,3324.1,1.18]
[1768342859258,3.34546539,3326.9,3324.0,3.51183618]
[1768342859848,3.34546539,3327.7,3324.2,3.51183618]
[1768342860056,3.34546539,3327.5,3324.2,4.69183618]
[1768342860360,1.545,3327.6,3324.2,3.51183618]
[1768342860361,3.34546539,3327.3,3324.2,3.51183618]
[1768342860956,3.34546539,3327.3,3324.3,3.51183618]
[1768342861347,3.34546539,3327.3,3324.4,1.18]
[1768342861552,0.00289316,3327.8,3325.0,3.51183618]
[1768342861850,0.00289316,3327.8,3325.7,5.01329838]
[1768342862051,0.00289316,3327.8,3325.9,3.51183618]
[1768342862261,3.34546539,3329.4,3326.2,3.51183618]
[1768342862461,3.34546539,3329.4,3326.1,1.5014622]
[1768342862462,3.009,3330.1,3326.6,3.51183618]
[1768342862661,3.34546539,3330.8,3327.2,3.51183618]
[1768342862855,3.34546539,3330.8,3327.4,3.51183618]
[1768342863251,3.34761786,3330.8,3327.4,3.51183618]
[1768342863454,3.34761786,3330.8,3327.6,3.51183618]
[1768342863661,3.34761786,3330.8,3327.8,3.51183618]
[1768342864557,3.34761786,3330.8,3327.9,1.18]
[1768342864762,3.34761786,3330.8,3328.0,0.003]
[1768342865463,3.34761786,3330.8,3328.0,3.42134456]
[1768342865664,0.00215247,3330.8,3328.0,3.42134456]
[1768342865864,3.3783777,3330.8,3328.0,3.42134456]
[1768342866269,0.00215247,3330.8,3328.0,3.42134456]
[1768342867063,3.3783777,3330.8,3328.0,3.42134456]
[1768342868068,0.00215247,3330.8,3328.2,3.41834456]
[1768342868270,0.00215247,3330.8,3328.2,3.42158783]
[1768342868569,3.37622523,3333.0,3329.0,3.41834456]
[1768342868863,3.37622523,3333.0,3329.2,3.41834456]
[1768342869069,3.37622523,3333.0,3329.4,3.41834456]
[1768342869363,3.37836892,3333.0,3329.4,3.41834456]
[1768342869561,3.37836892,3333.0,3329.6,3.41834456]
[1768342869762,3.37836892,3333.0,3329.7,3.41834456]
[1768342869972,3.37836892,3333.0,3329.8,1.18]
[1768342870160,3.37836892,3333.0,3329.9,3.41834456]
[1768342870463,3.37836892,3333.0,3330.1,3.41834456]
[1768342870663,0.00214369,3333.0,3330.1,3.41834456]
[1768342871572,0.00214369,3333.0,3330.1,9.41834456]
[1768342871768,0.00214369,3333.0,3330.3,3.41834456]
[1768342871966,0.00214369,3333.0,3330.5,3.41834456]